bitfinex-derivatives/quotes_SOLF0:USTF0_20251020
["timestamp","ask_amount","ask_price","bid_price","bid_amount"]
[1760951968858,6.81891352,192.75,192.67,45.71131352]
[1760951969056,6.81891352,192.75,192.68,2.7]
[1760951969559,4.6678,192.74,192.68,2.7]
[1760951970454,4.6678,192.74,192.68,46.24]
[1760951971460,2.15131352,192.69,192.61,4.85131352]
[1760951971668,2.15131352,192.67,192.61,2.7]
[1760951972067,2.86,192.68,192.61,2.7]
[1760951972967,4.6696,192.67,192.61,2.7]
[1760951973664,4.6696,192.67,192.61,46.24]
[1760951973960,5.01131352,192.72,192.63,4.85131352]
[1760951974366,5.01131352,192.72,192.64,43.56]
[1760951975062,2.15131352,192.7,192.6,2.7]
[1760951975254,2.86,192.69,192.62,4.85131352]
[1760951975455,6.70454291,192.78,192.67,4.6692]
[1760951975660,2.86,192.78,192.7,2.15131352]
[1760951975969,2.86,192.78,192.72,2.15131352]
[1760951976170,2.86,192.78,192.71,43.86]
[1760951976371,7.5269,192.78,192.71,43.86]
[1760951977860,2.15131352,192.75,192.7,43.9]
[1760951978078,2.86,192.74,192.7,43.9]
[1760951978459,2.86,192.74,192.67,43.88]
[1760951978660,2.86,192.74,192.66,4.85131352]
[1760951978864,2.86,192.74,192.67,43.88]
[1760951979063,2.86,192.74,192.68,43.88]
[1760951979260,2.86,192.74,192.66,4.85131352]
[1760951979460,2.86,192.74,192.67,43.88]
[1760951979662,2.86,192.74,192.68,43.86]
[1760951981767,2.86,192.74,192.69,43.86]
[1760951981966,2.86,192.74,192.69,2.7]
[1760951982163,2.86,192.74,192.69,46.54]
[1760951982367,2.86,192.74,192.69,2.7]
[1760951982769,2.86,192.74,192.68,46.54]
[1760951982970,7.5279,192.74,192.68,46.54]
[1760951983162,5.01131352,192.74,192.68,2.7]
[1760951983669,5.01131352,192.74,192.68,26.84]
[1760951984170,7.5281,192.73,192.69,2.7]
[1760951984372,2.15131352,192.76,192.7,2.7]
[1760951985368,2.15131352,192.78,192.7,2.7]
[1760951986767,4.6671,192.77,192.7,2.7]
[1760951986968,2.86,192.77,192.7,46.5]
[1760951987674,2.86,192.77,192.7,2.7]
[1760951987974,4.6674,192.76,192.7,2.7]
[1760951992074,4.6674,192.76,192.7,4.85131352]
[1760951995472,4.6668,192.78,192.71,2.7]
[1760951996274,7.3068,192.78,192.71,2.7]
[1760951997585,7.3068,192.78,192.72,2.15131352]
[1760951998380,2.64,192.78,192.75,2.7]
[1760951998875,7.3058,192.82,192.76,2.15131352]
[1760952000776,2.64,192.8,192.72,4.6681]
[1760952000978,4.78093822,192.88,192.71,2.15131352]
[1760952000979,2.64,192.78,192.71,2.15131352]
[1760952001981,4.6671,192.77,192.73,2.15131352]
[1760952002176,2.64,192.82,192.74,2.7]
[1760952002378,2.64,192.86,192.74,2.7]
[1760952002583,2.64,192.84,192.8,2.15131352]
[1760952002787,3.86131187,192.86,192.82,2.15131352]
[1760952003081,25.02,192.91,192.82,2.15131352]
[1760952003082,2.64,192.85,192.82,2.15131352]
[1760952003480,2.64,192.85,192.84,2.15131352]
[1760952007088,4.665,192.86,192.84,2.15131352]
[1760952007383,2.64,192.87,192.84,2.15131352]
[1760952007587,2.64,192.87,192.86,2.15131352]
[1760952007793,16.25675174,192.97,192.86,2.15131352]
[1760952007987,10.964341,192.96,192.88,2.15131352]
[1760952008182,10.964341,192.96,192.9,2.15131352]
[1760952008385,2.64,192.98,192.9,2.15131352]
[1760952008693,2.64,192.98,192.92,2.15131352]
[1760952009186,7.3027,192.96,192.94,2.15131352]
[1760952009488,2.64,192.95,192.94,2.15131352]
[1760952010491,1.04,192.95,192.77,9.66367118]
[1760952010681,4.79131352,192.94,192.85,2.15131352]
[1760952010881,2.64,192.91,192.82,2.15131352]
[1760952011077,2.64,192.87,192.79,2.15131352]
[1760952011482,2.15131352,192.86,192.77,2.15131352]
[1760952012692,2.64,192.87,192.76,2.7]
[1760952013097,4.666,192.83,192.76,2.7]
[1760952013699,5.3774507,192.87,192.71,2.63]
[1760952013886,2.59,192.86,192.71,2.63]
[1760952014690,4.6658,192.84,192.73,10.0456507]
[1760952014894,4.6658,192.84,192.74,2.63]
[1760952017092,7.256,192.83,192.74,2.63]
[1760952017597,2.59,192.83,192.74,2.63]
[1760952018895,27.0,192.87,192.74,2.63]
[1760952019098,27.0,192.91,192.78,2.66]
[1760952019396,29.66,192.92,192.78,2.66]
[1760952019900,29.66,192.92,192.78,43.58]
[1760952020095,4.6643,192.88,192.79,7.3263]
[1760952021099,4.6638,192.9,192.82,2.66]
[1760952022297,4.6642,192.89,192.82,2.66]
[1760952022504,2.66,192.89,192.78,35.0865]
[1760952023993,4.6645,192.88,192.78,7.3265]
[1760952025099,2.66,192.89,192.78,7.3265]
[1760952025704,7.325,192.86,192.78,2.66]
[1760952025892,2.66,192.86,192.78,2.66]
[1760952026086,2.66,192.86,192.74,46.18]
[1760952026293,4.6659,192.82,192.74,50.8476]
[1760952026501,4.6659,192.82,192.74,7.3276]
[1760952027903,4.6661,192.81,192.74,2.66]
[1760952029895,7.3264,192.8,192.74,2.66]
[1760952031098,4.6658,192.82,192.74,2.66]
[1760952032501,4.6658,192.82,192.74,7.3275]
[1760952032702,27.0,192.88,192.75,2.66]
[1760952032894,2.66,192.87,192.76,2.66]
[1760952033897,4.6654,192.84,192.76,7.327]
[1760952034102,2.66,192.87,192.76,46.12]
[1760952034298,2.66,192.87,192.76,2.66]
[1760952034606,4.6651,192.85,192.76,2.66]
[1760952035002,4.6651,192.85,192.78,2.66]
[1760952035207,2.66,192.87,192.78,46.12]
[1760952035405,2.66,192.87,192.78,2.66]
[1760952035605,2.66,192.87,192.79,43.48]
[1760952036006,7.3246,192.87,192.78,7.3266]
[1760952036203,7.3246,192.87,192.79,43.48]
[1760952036404,7.3246,192.87,192.79,43.46]
[1760952037005,4.6642,192.89,192.8,2.66]
[1760952037306,2.66,192.91,192.8,2.66]
[1760952038108,7.3236,192.91,192.83,2.66]
[1760952038303,7.3236,192.91,192.83,46.12]
[1760952040002,2.66,192.95,192.85,2.66]
[1760952040710,2.66,192.95,192.88,2.66]
[1760952041512,4.6625,192.96,192.88,7.3241]
[1760952042514,4.6619,192.98,192.88,7.3241]
[1760952042814,4.6619,192.98,192.84,43.46]
[1760952042815,4.6619,192.98,192.89,7.3239]
[1760952043006,2.66,192.99,192.89,2.66]
[1760952044409,2.66,192.99,192.9,43.44]
[1760952044615,2.66,192.99,192.91,2.66]
[1760952045213,7.3218,192.99,192.91,2.66]
[1760952045908,7.3218,192.99,192.92,43.44]
[1760952046412,7.3218,192.99,192.91,2.66]
[1760952046612,7.3218,192.99,192.92,24.62]
[1760952048218,7.3218,192.99,192.91,2.66]
[1760952048809,7.3218,192.99,192.91,32.06]
[1760952049010,7.3218,192.99,192.91,2.66]
[1760952049210,7.3218,192.99,192.91,46.08]
[1760952049612,7.3218,192.99,192.91,2.66]
[1760952049917,7.3218,192.99,192.91,27.28]
[1760952050412,7.3218,192.99,192.91,2.66]
[1760952050618,2.66,192.99,192.92,4.6632]
[1760952050805,2.66,192.99,192.93,2.6]
[1760952051209,7.3217,192.99,192.93,2.6]
[1760952052519,7.3217,192.99,192.9,7.2638]
[1760952052917,7.3217,192.99,192.9,50.6638]
[1760952053109,7.3217,192.99,192.9,7.2638]
[1760952053419,7.3217,192.99,192.91,4.6634]
[1760952054817,7.3217,192.99,192.92,3.35535741]
[1760952056415,7.3217,192.99,192.91,4.6634]
[1760952056416,3.35535741,193.02,192.9,2.6]
[1760952056722,2.81,193.01,192.9,2.6]
[1760952056922,2.81,192.99,192.9,2.6]
[1760952058015,2.81,192.96,192.9,2.6]
[1760952060210,7.4725,192.96,192.9,2.6]
[1760952060714,2.81,192.96,192.89,3.35535741]
[1760952061114,7.4724,192.96,192.89,3.35535741]
[1760952061318,2.81,192.99,192.9,2.6]
[1760952061921,4.662,192.98,192.9,7.2637]
[1760952062116,2.81,192.99,192.92,3.35535741]
[1760952062316,2.81,192.99,192.93,2.6]
[1760952062920,7.4718,192.99,192.93,2.6]
[1760952065121,4.662,192.98,192.93,2.6]
[1760952065323,2.81,192.98,192.89,2.6]
[1760952066526,2.81,192.94,192.86,4.6647]
[1760952066714,3.35535741,192.99,192.86,4.6647]
[1760952066912,2.81,192.97,192.87,2.6]
[1760952067318,4.6628,192.95,192.87,7.2644]
[1760952067524,4.6628,192.95,192.87,10.61975741]
[1760952068219,4.6628,192.95,192.87,7.2644]
[1760952069017,7.4728,192.95,192.87,7.2644]
[1760952069617,7.4728,192.95,192.87,2.6]
[1760952070528,4.663,192.94,192.87,2.6]
[1760952070822,2.81,192.93,192.85,4.6649]
[1760952071424,2.81,192.93,192.83,7.2654]
[1760952071625,3.35535741,192.93,192.83,7.2654]
[1760952071826,2.81,192.92,192.83,2.6]
[1760952072028,2.81,192.86,192.79,2.6]
[1760952072728,2.81,192.83,192.76,2.6]
[1760952073231,4.6662,192.82,192.76,2.6]
[1760952073427,3.35535741,192.81,192.71,2.84]
[1760952073623,2.76,192.8,192.71,2.84]
[1760952074123,7.4268,192.8,192.71,2.84]
[1760952074723,2.76,192.8,192.71,2.84]
[1760952074923,2.76,192.8,192.71,7.5085]
[1760952075225,2.76,192.8,192.72,2.84]
[1760952075729,2.76,192.8,192.72,7.5083]
[1760952076520,3.35535741,192.9,192.69,3.35535741]
[1760952076827,6.11535741,192.89,192.76,2.84]
[1760952077020,6.11535741,192.89,192.78,2.84]
[1760952077218,10.77995741,192.89,192.78,7.5069]
[1760952078124,10.77995741,192.89,192.78,2.84]
[1760952079231,10.77995741,192.89,192.8,4.6664]
[1760952082221,10.77995741,192.89,192.81,4.6662]
[1760952082831,2.15030447,192.87,192.81,4.6662]
[1760952083234,4.91030447,192.89,192.81,6.81650447]
[1760952083439,4.91030447,192.89,192.81,4.6662]
[1760952083632,4.91030447,192.89,192.81,6.81650447]
[1760952084132,9.57480447,192.89,192.81,6.81650447]
[1760952084339,2.79,192.86,192.8,2.62]
[1760952085628,2.79,192.86,192.79,4.6667]
[1760952085828,2.79,192.86,192.77,4.77030447]
[1760952086036,2.79,192.84,192.77,2.62]
[1760952086439,2.15030447,192.83,192.77,2.62]
[1760952088345,2.15030447,192.83,192.73,9.43850447]
[1760952088642,2.15030447,192.81,192.73,9.43850447]
[1760952089339,2.15030447,192.79,192.73,2.62]
[1760952089547,2.79,192.78,192.7,4.77030447]
[1760952090244,2.79,192.78,192.7,2.62]
[1760952090636,2.15030447,192.79,192.7,4.77030447]
[1760952090943,2.15030447,192.79,192.71,2.62]
[1760952091141,2.79,192.81,192.73,2.62]
[1760952091938,2.79,192.81,192.73,7.2881]
[1760952092847,2.15030447,192.82,192.75,2.62]
[1760952093436,2.79,192.81,192.75,2.62]
[1760952093941,2.15030447,192.82,192.75,2.62]
[1760952094547,4.666,192.83,192.75,2.62]
[1760952095043,4.666,192.83,192.75,7.2876]
[1760952095249,4.666,192.83,192.75,50.7076]
[1760952095447,4.666,192.83,192.75,7.2876]
[1760952096647,4.666,192.83,192.76,2.15030447]
[1760952096948,2.15030447,192.84,192.76,2.15030447]
[1760952098849,2.15030447,192.84,192.76,6.81770447]
[1760952099542,7.4555,192.85,192.78,2.15030447]
[1760952102243,7.4555,192.85,192.77,4.77030447]
[1760952104149,4.6657,192.84,192.77,4.77030447]
[1760952105651,4.6657,192.84,192.77,2.62]
[1760952105850,4.6657,192.84,192.77,4.77030447]
[1760952109349,7.336,192.83,192.77,4.77030447]
[1760952114754,9.48630447,192.83,192.77,2.62]
[1760952116058,7.336,192.83,192.77,2.62]
[1760952116261,9.48630447,192.83,192.77,2.62]
[1760952119254,2.15030447,192.85,192.78,4.667]
[1760952119455,2.15030447,192.85,192.79,2.59]
[1760952120052,2.67,192.83,192.79,2.59]
[1760952121762,2.67,192.82,192.79,2.59]
[1760952122267,2.15030447,192.85,192.76,47.1074]
[1760952122470,2.15030447,192.83,192.76,9.40770447]
[1760952123558,2.67,192.8,192.74,9.66367118]
[1760952123765,2.67,192.78,192.71,9.66367118]
[1760952123974,4.6676,192.76,192.71,9.66367118]
[1760952124159,2.67,192.75,192.71,12.25367118]
[1760952124362,2.67,192.74,192.69,9.66367118]
[1760952124567,4.82030447,192.75,192.69,9.66367118]
[1760952125968,4.6682,192.74,192.69,9.66367118]
[1760952126162,7.3382,192.74,192.69,12.25367118]
[1760952126364,2.67,192.73,192.69,12.25367118]
[1760952126559,4.6682,192.74,192.69,9.66367118]
[1760952126760,2.67,192.73,192.69,9.66367118]
[1760952126966,2.67,192.72,192.67,9.66367118]
[1760952127166,2.15030447,192.73,192.67,9.66367118]
[1760952127367,2.67,192.72,192.66,9.66367118]
[1760952127670,2.15030447,192.71,192.65,12.25367118]
[1760952127870,2.15030447,192.71,192.65,2.59]
[1760952128073,6.81930447,192.71,192.65,2.59]
[1760952128274,2.67,192.7,192.62,2.59]
[1760952128476,2.15030447,192.69,192.62,2.59]
[1760952128677,2.67,192.68,192.62,2.59]
[1760952129274,2.67,192.68,192.64,2.15030447]
[1760952129775,2.67,192.68,192.64,4.74030447]
[1760952129977,2.67,192.7,192.67,2.59]
[1760952130168,2.15030447,192.8,192.7,2.59]
[1760952130373,2.67,192.78,192.72,2.15030447]
[1760952130574,7.3375,192.77,192.72,4.74030447]
[1760952130970,2.67,192.76,192.72,2.15030447]
[1760952131174,2.67,192.75,192.72,2.15030447]
[1760952131372,2.67,192.78,192.74,2.15030447]
[1760952131578,2.67,192.78,192.74,4.74030447]
[1760952133280,2.62,192.8,192.76,2.15030447]
[1760952133666,3.96597509,192.83,192.76,2.15030447]
[1760952133871,2.62,192.79,192.76,2.15030447]
[1760952134177,2.62,192.78,192.76,2.15030447]
[1760952134573,6.58544649,192.83,192.76,5.01030447]
[1760952134775,2.62,192.85,192.77,2.86]
[1760952135078,2.62,192.85,192.83,2.15030447]
[1760952136683,4.6653,192.86,192.83,2.15030447]
[1760952136883,2.62,192.91,192.85,2.15030447]
[1760952137082,2.62,192.92,192.88,2.15030447]
[1760952137285,2.77,192.91,192.88,2.15030447]
[1760952137588,3.96594254,192.94,192.88,2.15030447]
[1760952137786,4.6642,192.9,192.88,2.15030447]
[1760952138089,2.77,192.89,192.88,2.15030447]
[1760952138483,2.77,192.89,192.86,2.15030447]
[1760952139686,4.6642,192.9,192.86,2.15030447]
[1760952139991,4.6642,192.9,192.86,4.97030447]
[1760952140188,2.77,192.91,192.66,12.80959182]
[1760952140387,2.77,192.91,192.84,2.15030447]
[1760952140895,2.77,192.91,192.81,2.82]
[1760952140896,2.77,192.89,192.82,2.15030447]
[1760952141897,7.4353,192.86,192.81,2.82]
[1760952142085,2.15030447,192.88,192.8,2.15030447]
[1760952142290,4.92030447,192.86,192.8,2.15030447]
[1760952143190,4.6656,192.84,192.8,4.97030447]
[1760952144095,4.6656,192.84,192.8,2.82]
[1760952144393,4.6651,192.86,192.8,2.82]
[1760952146191,4.6651,192.86,192.74,38.18021841]
[1760952146493,8.02531841,192.86,192.73,3.36021841]
[1760952147198,4.6654,192.85,192.75,4.6677]
[1760952147388,6.13021841,192.86,192.73,3.36021841]
[1760952147990,6.13021841,192.86,192.71,3.36021841]
[1760952147991,4.6662,192.82,192.71,3.36021841]
[1760952148194,4.6662,192.82,192.72,2.82]
[1760952148990,4.6664,192.81,192.72,2.82]
[1760952149792,4.46225699,192.81,192.72,2.82]
[1760952149997,4.6658,192.83,192.73,2.82]
[1760952150798,4.6661,192.82,192.74,2.82]
[1760952150998,8.02631841,192.82,192.74,2.82]
[1760952153203,4.6661,192.82,192.74,2.82]
[1760952153404,2.77,192.83,192.74,2.82]
[1760952155105,7.4359,192.83,192.74,2.82]
[1760952156510,7.4359,192.83,192.74,4.6678]
[1760952156709,7.4359,192.83,192.75,2.82]
[1760952158306,2.77,192.83,192.75,2.82]
[1760952158512,2.77,192.83,192.75,6.18021841]
[1760952158801,4.6653,192.85,192.76,2.82]
[1760952159809,2.77,192.84,192.76,2.82]
[1760952160711,7.4357,192.84,192.76,2.82]
[1760952161004,2.77,192.84,192.76,2.82]
[1760952162210,4.6661,192.82,192.76,2.82]
[1760952164511,7.4355,192.84,192.76,2.82]
[1760952167814,3.36021841,192.86,192.76,2.82]
[1760952168315,2.86,192.85,192.76,2.82]
[1760952169109,2.86,192.85,192.78,2.63]
[1760952171113,4.6646,192.88,192.78,2.63]
[1760952171614,6.22021841,192.89,192.78,2.63]
[1760952172014,6.22021841,192.89,192.79,2.63]
[1760952173015,10.88451841,192.89,192.79,7.2965]
[1760952173217,6.22021841,192.89,192.79,7.2965]
[1760952173416,2.86,192.89,192.8,2.63]
[1760952173715,7.5244,192.89,192.8,7.2963]
[1760952174221,7.5244,192.89,192.8,10.65651841]
[1760952174613,7.5244,192.89,192.8,8.02651841]
[1760952174918,2.86,192.89,192.81,2.63]
[1760952175110,2.86,192.89,192.81,4.666]
[1760952175308,2.86,192.89,192.82,2.63]
[1760952175711,10.88391841,192.92,192.82,2.63]
[1760952176121,10.88391841,192.92,192.82,7.2958]
[1760952176308,10.88391841,192.92,192.81,25.58]
[1760952176309,2.86,192.92,192.81,25.58]
[1760952176519,2.86,192.92,192.81,28.94021841]
[1760952176718,2.86,192.92,192.81,3.36021841]
[1760952177414,2.86,192.97,192.84,3.36021841]
[1760952177918,3.36021841,192.99,192.85,5.4]
[1760952178123,3.36021841,192.99,192.86,26.58]
[1760952178319,3.36021841,192.99,192.85,1.41]
[1760952178523,3.36021841,192.99,192.88,1.41]
[1760952178824,2.86,193.0,192.89,4.6641]
[1760952179028,2.86,193.0,192.9,1.41]
[1760952179321,3.36021841,193.02,192.91,1.41]
[1760952179527,2.86,193.04,192.91,1.41]
[1760952179827,2.86,193.04,192.9,3.36021841]
[1760952179828,2.86,193.04,192.94,1.41]
[1760952180422,2.86,193.04,192.95,1.41]
[1760952181029,2.86,193.04,192.95,6.0726]
[1760952182721,2.86,193.04,192.97,1.41]
[1760952187838,2.86,193.04,192.98,1.41]
[1760952190235,3.36021841,193.08,192.99,1.41]
[1760952190431,2.86,193.07,192.99,1.41]
[1760952191127,2.86,193.04,192.96,4.6625]
[1760952194231,2.86,193.04,192.95,1.41]
[1760952195129,2.86,193.04,192.95,11.29]
[1760952195327,2.86,193.04,192.95,1.41]
[1760952195943,2.59,193.04,192.95,1.41]
[1760952196442,2.59,193.04,192.95,6.0727]
[1760952197031,2.59,193.04,192.96,1.41]
[1760952197232,2.59,193.04,192.96,6.0725]
[1760952197434,2.59,193.04,192.97,1.41]
[1760952202444,8.02071841,193.05,192.96,4.6625]
[1760952202634,8.02071841,193.05,192.94,6.0729]
[1760952202841,2.64,193.01,192.94,6.0729]
[1760952203145,3.36021841,193.08,192.92,4.6635]
[1760952203146,2.64,192.98,192.92,4.6635]
[1760952203546,2.64,192.98,192.91,1.41]
[1760952203737,3.36021841,192.96,192.88,1.41]
[1760952203938,3.36021841,192.93,192.88,1.41]
[1760952204342,2.64,192.92,192.88,1.41]
[1760952206344,2.64,192.92,192.84,6.0754]
[1760952206744,2.14933315,192.9,192.84,6.0754]
[1760952207751,2.14933315,192.88,192.84,1.41]
[1760952207949,4.78933315,192.88,192.84,44.71]
[1760952208146,2.64,192.88,192.84,1.41]
[1760952208453,2.64,192.92,192.85,1.41]
[1760952208651,2.64,192.92,192.86,2.14933315]
[1760952208947,4.78933315,192.96,192.88,2.14933315]
[1760952209555,4.78933315,192.96,192.89,43.3]
[1760952209854,2.64,192.95,192.88,2.14933315]
[1760952210641,2.64,192.95,192.89,43.3]
[1760952210951,2.64,192.95,192.88,2.14933315]
[1760952211346,2.14933315,192.96,192.89,43.3]
[1760952211546,2.64,192.91,192.85,2.14933315]
[1760952211947,2.14933315,192.92,192.86,43.3]
[1760952212154,2.14933315,192.94,192.85,2.14933315]
[1760952212350,2.64,192.89,192.77,1.41]
[1760952212558,2.64,192.87,192.8,2.14933315]
[1760952212952,2.64,192.87,192.8,21.80933315]
[1760952213157,2.64,192.87,192.8,2.14933315]
[1760952213361,6.81353315,192.9,192.82,2.14933315]
[1760952213558,2.64,192.89,192.82,2.14933315]
[1760952213958,6.81353315,192.9,192.8,2.14933315]
[1760952213959,2.14933315,192.88,192.8,2.14933315]
[1760952214258,2.64,192.87,192.8,2.14933315]
[1760952214455,6.81383315,192.88,192.79,6.0765]
[1760952214757,2.64,192.85,192.78,2.14933315]
[1760952215859,2.64,192.85,192.81,1.41]
[1760952216154,4.78933315,192.89,192.82,2.14933315]
[1760952217154,2.14933315,192.87,192.8,2.14933315]
[1760952217357,2.64,192.86,192.8,2.14933315]
[1760952220359,2.64,192.86,192.79,2.14933315]
[1760952220950,4.78933315,192.86,192.79,2.14933315]
[1760952221356,2.64,192.86,192.79,2.14933315]
[1760952222257,2.64,192.84,192.76,2.14933315]
[1760952222453,2.14933315,192.83,192.76,2.14933315]
[1760952222655,2.64,192.82,192.75,4.6676]
[1760952223257,2.64,192.82,192.74,26.05933315]
[1760952223758,2.64,192.82,192.74,3.55933315]
[1760952224867,2.64,192.82,192.76,2.14933315]
[1760952226765,7.3061,192.82,192.76,2.14933315]
[1760952230767,2.64,192.82,192.76,3.56933315]
[1760952236072,7.3061,192.82,192.76,3.56933315]
[1760952238970,2.66,192.87,192.79,1.42]
[1760952239170,2.66,192.87,192.8,2.14933315]
[1760952239673,7.3254,192.85,192.79,1.42]
[1760952240074,2.66,192.84,192.8,2.14933315]
[1760952240274,2.66,192.84,192.8,3.56933315]
[1760952240473,2.66,192.83,192.76,8.0]
[1760952240773,2.66,192.85,192.78,2.14933315]
[1760952240967,27.0,192.9,192.83,1.42]
[1760952241168,2.66,192.89,192.84,2.14933315]
[1760952241471,4.6646,192.88,192.84,2.14933315]
[1760952241862,2.66,192.87,192.84,2.14933315]
[1760952242061,4.6646,192.88,192.84,2.14933315]
[1760952242062,2.66,192.86,192.84,2.14933315]
[1760952242774,4.6646,192.88,192.84,2.14933315]
[1760952242974,2.66,192.87,192.84,2.14933315]
[1760952243175,2.66,192.87,192.81,2.14933315]
[1760952243372,2.66,192.87,192.81,6.81543315]
[1760952243572,9.47333315,192.91,192.83,3.56933315]
[1760952243871,4.80933315,192.91,192.83,3.56933315]
[1760952244266,4.6642,192.9,192.83,3.56933315]
[1760952244876,2.66,192.91,192.87,3.56933315]
[1760952245066,2.66,192.91,192.87,2.14933315]
[1760952245266,4.6637,192.92,192.87,2.14933315]
[1760952245267,2.66,192.9,192.87,2.14933315]
[1760952245469,2.66,192.9,192.86,1.42]
[1760952245669,4.6637,192.92,192.86,1.42]
[1760952245972,2.66,192.91,192.86,1.42]
[1760952246164,2.66,192.91,192.82,4.6659]
[1760952246165,2.14933315,192.88,192.82,1.42]
[1760952246365,2.66,192.87,192.8,4.6664]
[1760952247175,2.14933315,192.86,192.8,4.6664]
[1760952247676,27.0,192.94,192.81,1.42]
[1760952247875,9.324,192.99,192.84,1.42]
[1760952247876,2.14933315,192.92,192.84,1.42]
[1760952248880,2.14933315,192.92,192.85,4.665]
[1760952250377,2.66,192.91,192.84,1.42]
[1760952250679,2.14933315,192.9,192.84,1.42]
[1760952252164,2.66,192.91,192.84,1.42]
[1760952253077,2.66,192.91,192.84,6.0853]
[1760952253478,2.66,192.91,192.84,1.42]
[1760952253673,4.81933315,192.94,192.86,1.42]
[1760952253869,4.81933315,192.94,192.87,2.14933315]
[1760952255274,2.67,192.94,192.87,2.14933315]
[1760952258376,7.4233,192.94,192.86,1.42]
[1760952258577,7.4233,192.94,192.86,3.56933315]
[1760952258777,4.6633,192.94,192.86,1.42]
[1760952258975,2.76,192.93,192.86,1.42]
[1760952259175,2.76,192.9,192.86,1.42]
[1760952259575,2.14933315,192.93,192.85,1.42]
[1760952259879,4.90933315,192.94,192.85,6.0851]
[1760952260076,2.14933315,192.92,192.85,6.0851]
[1760952263471,2.76,192.93,192.87,1.42]
[1760952264086,2.76,193.02,192.9,1.42]
[1760952264383,4.90933315,193.0,192.92,2.14933315]
[1760952265072,2.76,193.0,192.94,2.14933315]
[1760952267981,4.6619,192.99,192.93,2.14933315]
[1760952268188,2.76,192.97,192.91,45.44933315]
[1760952268580,2.76,192.97,192.91,2.14933315]
[1760952268775,2.76,192.97,192.9,4.77575025]
[1760952271175,2.76,192.97,192.9,9.43965025]
[1760952271577,2.76,192.97,192.9,52.71965025]
[1760952271786,2.76,192.97,192.9,9.43965025]
[1760952271988,2.76,193.0,192.92,1.42]
[1760952272188,2.76,193.0,192.93,3.35575025]
[1760952272893,7.4218,193.0,192.92,4.77575025]
[1760952273283,2.76,192.99,192.92,4.77575025]
[1760952276591,27.0,193.06,192.95,3.35575025]
[1760952276787,30.9325305,193.05,192.92,4.77575025]
[1760952276982,2.76,193.04,192.92,4.77575025]
[1760952277194,27.0,193.05,192.92,4.77575025]
[1760952277599,2.76,193.04,192.92,4.77575025]
[1760952277892,2.76,193.0,192.93,4.6632]
[1760952278100,2.76,192.99,192.95,4.77575025]
[1760952278497,2.76,193.04,192.96,1.42]
[1760952278789,27.0,193.05,192.96,4.77575025]
[1760952278988,4.661,193.03,192.96,4.77575025]
[1760952280396,2.76,193.01,192.94,3.35575025]
[1760952280592,2.76,193.04,192.92,1.42]
[1760952280796,2.76,193.02,192.92,1.42]
[1760952282097,4.662,192.99,192.92,6.0834]
[1760952282695,4.6614,193.01,192.92,6.0834]
[1760952284193,4.6614,193.01,192.94,4.77575025]
[1760952285801,2.76,193.02,192.98,1.42]
[1760952286093,4.6609,193.03,192.98,1.42]